[Event "Titled Tuesday Blitz October 31 Late 2023"]
[White "Rose, Felix"]
[Black "Clawitter, Craig"]
[WhiteFideId "5105722"]
[BlackFideId "2023105"]
[WhiteElo "2343"]
[BlackElo "2233"]
[Result "0-1"]
[Round "10"]
[TimeControl "180+1"]
[Date "2023.10.31"]
[WhiteClock "0:00:30"]
[BlackClock "0:00:19"]
[Board "97"]

1. e4 {[%clk 0:03:00]}  e6 {[%clk 0:02:59]} 2. d4 {[%clk 0:02:59]}  d5 {[%clk 0:02:59]} 3. Nc3 {[%clk 0:02:59]}  Bb4 {[%clk 0:02:58]} 4. e5 {[%clk 0:02:59]}  c5 {[%clk 0:02:59]} 5. a3 {[%clk 0:02:58]}  Bxc3+ {[%clk 0:02:59]} 6. bxc3 {[%clk 0:02:59]}  Ne7 {[%clk 0:02:59]} 7. Qg4 {[%clk 0:02:59]}  Qc7 {[%clk 0:03:00]} 8. Bd3 {[%clk 0:02:56]}  c4 {[%clk 0:02:58]} 9. Be2 {[%clk 0:02:51]}  Qa5 {[%clk 0:02:58]} 10. Bd2 {[%clk 0:02:47]}  Nf5 {[%clk 0:02:58]} 11. h4 {[%clk 0:02:41]}  Nc6 {[%clk 0:02:45]} 12. h5 {[%clk 0:02:41]}  h6 {[%clk 0:02:45]} 13. Qf4 {[%clk 0:02:26]}  Bd7 {[%clk 0:02:29]} 14. Rh3 {[%clk 0:02:16]}  O-O-O {[%clk 0:02:21]} 15. g4 {[%clk 0:02:15]}  Nfe7 {[%clk 0:02:20]} 16. Rf3 {[%clk 0:01:38]}  Rdf8 {[%clk 0:02:11]} 17. Nh3 {[%clk 0:01:36]}  f6 {[%clk 0:02:06]} 18. Qg3 {[%clk 0:01:34]}  fxe5 {[%clk 0:01:57]} 19. Rxf8+ {[%clk 0:01:33]}  Rxf8 {[%clk 0:01:56]} 20. dxe5 {[%clk 0:01:34]}  Qa4 {[%clk 0:01:26]} 21. Bd1 {[%clk 0:01:27]}  d4 {[%clk 0:01:09]} 22. cxd4 {[%clk 0:01:16]}  Nxd4 {[%clk 0:01:09]} 23. Qc3 {[%clk 0:01:16]}  Nec6 {[%clk 0:00:39]} 24. Ng1 {[%clk 0:01:00]}  Qb5 {[%clk 0:00:36]} 25. Be3 {[%clk 0:00:55]}  Qxe5 {[%clk 0:00:35]} 26. Rb1 {[%clk 0:00:42]}  Nf3+ {[%clk 0:00:30]} 27. Nxf3 {[%clk 0:00:32]}  Qxc3+ {[%clk 0:00:30]} 28. Bd2 {[%clk 0:00:33]}  Qf6 {[%clk 0:00:23]} 29. Be2 {[%clk 0:00:27]}  Nd4 {[%clk 0:00:21]} 30. Nxd4 {[%clk 0:00:23]}  Qxf2+ {[%clk 0:00:21]} 31. Kd1 {[%clk 0:00:23]}  Qg1+ {[%clk 0:00:19]} 32. Be1 {[%clk 0:00:24]}  Qxd4+ {[%clk 0:00:19]} 33. Kc1 {[%clk 0:00:22]}  Qe3+ {[%clk 0:00:18]} 34. Kd1 {[%clk 0:00:21]}  Rf4 {[%clk 0:00:17]} 35. c3 {[%clk 0:00:20]}  Bc6 {[%clk 0:00:15]} 36. Bd2 {[%clk 0:00:20]}  Qg1+ {[%clk 0:00:14]} 37. Be1 {[%clk 0:00:16]}  Be4 {[%clk 0:00:14]} 38. Rb2 {[%clk 0:00:16]}  Bd3 {[%clk 0:00:14]} 39. Bxd3 {[%clk 0:00:15]}  cxd3 {[%clk 0:00:15]} 40. Rd2 {[%clk 0:00:16]}  Re4 {[%clk 0:00:15]} 41. Rxd3 {[%clk 0:00:15]}  Qxe1+ {[%clk 0:00:15]} 42. Kc2 {[%clk 0:00:16]}  Qe2+ {[%clk 0:00:16]} 43. Rd2 {[%clk 0:00:17]}  Qc4 {[%clk 0:00:16]} 44. g5 {[%clk 0:00:16]}  Re2 {[%clk 0:00:15]} 45. gxh6 {[%clk 0:00:17]}  Rxd2+ {[%clk 0:00:15]} 46. Kxd2 {[%clk 0:00:17]}  gxh6 {[%clk 0:00:15]} 47. a4 {[%clk 0:00:18]}  Qa2+ {[%clk 0:00:15]} 48. Kd3 {[%clk 0:00:18]}  Qxa4 {[%clk 0:00:16]} 49. c4 {[%clk 0:00:19]}  Qc6 {[%clk 0:00:15]} 50. Kd4 {[%clk 0:00:20]}  Qf3 {[%clk 0:00:15]} 51. Ke5 {[%clk 0:00:20]}  Qxh5+ {[%clk 0:00:15]} 52. Kd6 {[%clk 0:00:21]}  Qg5 {[%clk 0:00:16]} 53. c5 {[%clk 0:00:22]}  Qd5+ {[%clk 0:00:15]} 54. Ke7 {[%clk 0:00:23]}  Qd7+ {[%clk 0:00:15]} 55. Kf6 {[%clk 0:00:23]}  e5 {[%clk 0:00:16]} 56. Kxe5 {[%clk 0:00:23]}  h5 {[%clk 0:00:16]} 57. Kf4 {[%clk 0:00:24]}  Qg7 {[%clk 0:00:16]} 58. c6 {[%clk 0:00:25]}  bxc6 {[%clk 0:00:16]} 59. Kf3 {[%clk 0:00:25]}  h4 {[%clk 0:00:16]} 60. Kf2 {[%clk 0:00:26]}  h3 {[%clk 0:00:17]} 61. Ke3 {[%clk 0:00:27]}  h2 {[%clk 0:00:17]} 62. Kd3 {[%clk 0:00:28]}  h1=Q {[%clk 0:00:18]} 63. Kc4 {[%clk 0:00:28]}  Qh4+ {[%clk 0:00:18]} 64. Kc5 {[%clk 0:00:29]}  Qgd4+ {[%clk 0:00:17]} 65. Kxc6 {[%clk 0:00:28]}  Qb6+ {[%clk 0:00:18]} 66. Kd5 {[%clk 0:00:29]}  Qg5+ {[%clk 0:00:18]} 67. Ke4 {[%clk 0:00:29]}  Qb4+ {[%clk 0:00:17]} 68. Kd3 {[%clk 0:00:29]}  Qg3+ {[%clk 0:00:18]} 69. Kc2 {[%clk 0:00:30]}  Qc4+ {[%clk 0:00:17]} 70. Kd2 {[%clk 0:00:30]}  Qd4+ {[%clk 0:00:17]} 71. Ke2 {[%clk 0:00:31]}  Qdf2+ {[%clk 0:00:18]} 72. Kd1 {[%clk 0:00:30]}  Qgg1# {[%clk 0:00:19]} 0-1


[Site "https://www.chess.com"]

[Event "Titled Tuesday Blitz October 31 Late 2023"]
[White "Pein, Jonathan"]
[Black "Guha, Eshan"]
[WhiteFideId "417092"]
[BlackFideId "30958628"]
[WhiteElo "2296"]
[BlackElo "2342"]
[Result "0-1"]
[Round "10"]
[TimeControl "180+1"]
[Date "2023.10.31"]
[WhiteClock "0:00:00"]
[BlackClock "0:00:11"]
[Board "99"]

1. b3 {[%clk 0:03:00]}  Nf6 {[%clk 0:02:59]} 2. Bb2 {[%clk 0:03:01]}  g6 {[%clk 0:02:59]} 3. Bxf6 {[%clk 0:03:00]}  exf6 {[%clk 0:03:00]} 4. c4 {[%clk 0:03:01]}  f5 {[%clk 0:03:00]} 5. Nc3 {[%clk 0:03:01]}  Bg7 {[%clk 0:03:01]} 6. g3 {[%clk 0:03:02]}  O-O {[%clk 0:03:02]} 7. Bg2 {[%clk 0:03:02]}  d6 {[%clk 0:03:02]} 8. e3 {[%clk 0:03:02]}  c6 {[%clk 0:03:03]} 9. h4 {[%clk 0:03:03]}  Nd7 {[%clk 0:03:03]} 10. Nh3 {[%clk 0:03:03]}  Nf6 {[%clk 0:03:04]} 11. Nf4 {[%clk 0:03:04]}  h6 {[%clk 0:03:01]} 12. O-O {[%clk 0:03:04]}  Re8 {[%clk 0:02:59]} 13. Rc1 {[%clk 0:03:03]}  Ne4 {[%clk 0:02:52]} 14. d4 {[%clk 0:02:54]}  Qe7 {[%clk 0:02:37]} 15. Qd3 {[%clk 0:02:50]}  a5 {[%clk 0:02:35]} 16. a3 {[%clk 0:02:47]}  Bd7 {[%clk 0:02:31]} 17. Rfe1 {[%clk 0:02:27]}  Nf6 {[%clk 0:02:30]} 18. Nh3 {[%clk 0:02:08]}  Ne4 {[%clk 0:02:18]} 19. Nf4 {[%clk 0:02:08]}  Nf6 {[%clk 0:02:18]} 20. Nh3 {[%clk 0:02:08]}  Bh8 {[%clk 0:01:39]} 21. e4 {[%clk 0:02:00]}  fxe4 {[%clk 0:01:37]} 22. Nxe4 {[%clk 0:02:00]}  Nxe4 {[%clk 0:01:38]} 23. Rxe4 {[%clk 0:02:00]}  Qf6 {[%clk 0:01:37]} 24. Rxe8+ {[%clk 0:01:50]}  Rxe8 {[%clk 0:01:38]} 25. Rd1 {[%clk 0:01:42]}  Bg4 {[%clk 0:01:23]} 26. f3 {[%clk 0:01:30]}  Bf5 {[%clk 0:01:23]} 27. Qf1 {[%clk 0:01:03]}  Bc2 {[%clk 0:01:17]} 28. Rd2 {[%clk 0:00:57]}  Bxb3 {[%clk 0:01:17]} 29. Nf2 {[%clk 0:00:58]}  a4 {[%clk 0:01:10]} 30. Ne4 {[%clk 0:00:52]}  Qe7 {[%clk 0:01:10]} 31. Kh2 {[%clk 0:00:36]}  Kh7 {[%clk 0:01:08]} 32. Re2 {[%clk 0:00:29]}  Qd8 {[%clk 0:00:51]} 33. Qe1 {[%clk 0:00:21]}  Rf8 {[%clk 0:00:35]} 34. Qc3 {[%clk 0:00:06]}  c5 {[%clk 0:00:31]} 35. Qd2 {[%clk 0:00:06]}  Bxd4 {[%clk 0:00:29]} 36. Nc3 {[%clk 0:00:06]}  Bxc4 {[%clk 0:00:28]} 37. Re1 {[%clk 0:00:06]}  b5 {[%clk 0:00:28]} 38. f4 {[%clk 0:00:06]}  Re8 {[%clk 0:00:25]} 39. Ne4 {[%clk 0:00:05]}  d5 {[%clk 0:00:22]} 40. Nf2 {[%clk 0:00:02]}  Rxe1 {[%clk 0:00:18]} 41. Qxe1 {[%clk 0:00:02]}  Bxf2 {[%clk 0:00:18]} 42. Qxf2 {[%clk 0:00:03]}  d4 {[%clk 0:00:19]} 43. Qe1 {[%clk 0:00:03]}  Qd7 {[%clk 0:00:18]} 44. h5 {[%clk 0:00:03]}  Qe6 {[%clk 0:00:17]} 45. hxg6+ {[%clk 0:00:03]}  fxg6 {[%clk 0:00:16]} 46. Qd2 {[%clk 0:00:02]}  Qe3 {[%clk 0:00:16]} 47. Qc2 {[%clk 0:00:00]}  Qe2 {[%clk 0:00:11]} 0-1


[Site "https://www.chess.com"]

[Event "Titled Tuesday Blitz October 31 Late 2023"]
[White "nicholas_ilic"]
[Black "Vila Dupla, Aurelio"]
[BlackFideId "2203383"]
[WhiteElo "2365"]
[BlackElo "2225"]
[Result "1-0"]
[Round "10"]
[TimeControl "180+1"]
[Date "2023.10.31"]
[WhiteClock "0:00:39"]
[BlackClock "0:00:00"]
[Board "101"]

1. e4 {[%clk 0:03:00]}  c5 {[%clk 0:02:59]} 2. d4 {[%clk 0:02:54]}  cxd4 {[%clk 0:02:58]} 3. c3 {[%clk 0:02:54]}  dxc3 {[%clk 0:02:57]} 4. Nxc3 {[%clk 0:02:55]}  Nc6 {[%clk 0:02:57]} 5. Bc4 {[%clk 0:02:55]}  e6 {[%clk 0:02:57]} 6. Nf3 {[%clk 0:02:55]}  a6 {[%clk 0:02:56]} 7. O-O {[%clk 0:02:55]}  Bb4 {[%clk 0:02:55]} 8. Bg5 {[%clk 0:02:49]}  Qa5 {[%clk 0:02:49]} 9. Bd2 {[%clk 0:02:23]}  Nge7 {[%clk 0:02:44]} 10. a3 {[%clk 0:02:22]}  Bxc3 {[%clk 0:02:28]} 11. Bxc3 {[%clk 0:02:22]}  Qc5 {[%clk 0:02:29]} 12. Qe2 {[%clk 0:02:17]}  O-O {[%clk 0:02:27]} 13. b4 {[%clk 0:02:16]}  Qh5 {[%clk 0:02:25]} 14. e5 {[%clk 0:02:04]}  Nf5 {[%clk 0:02:23]} 15. Qe4 {[%clk 0:02:00]}  d5 {[%clk 0:02:15]} 16. exd6 {[%clk 0:01:55]}  Nxd6 {[%clk 0:02:15]} 17. Qe2 {[%clk 0:01:55]}  Nxc4 {[%clk 0:02:01]} 18. Qxc4 {[%clk 0:01:54]}  e5 {[%clk 0:01:55]} 19. Rae1 {[%clk 0:01:52]}  Be6 {[%clk 0:01:55]} 20. Qe4 {[%clk 0:01:51]}  f6 {[%clk 0:01:52]} 21. a4 {[%clk 0:01:46]}  Rfd8 {[%clk 0:01:33]} 22. b5 {[%clk 0:01:45]}  Bd5 {[%clk 0:01:33]} 23. Qe3 {[%clk 0:01:41]}  Bxf3 {[%clk 0:01:33]} 24. gxf3 {[%clk 0:01:41]}  axb5 {[%clk 0:01:31]} 25. axb5 {[%clk 0:01:41]}  Nd4 {[%clk 0:01:31]} 26. Bxd4 {[%clk 0:01:41]}  Rxd4 {[%clk 0:01:31]} 27. Qb3+ {[%clk 0:01:42]}  Kh8 {[%clk 0:01:30]} 28. Rc1 {[%clk 0:01:42]}  Rh4 {[%clk 0:01:25]} 29. Qa2 {[%clk 0:01:12]}  Rg8 {[%clk 0:01:04]} 30. Rfd1 {[%clk 0:01:04]}  Qxf3 {[%clk 0:00:48]} 31. Qd5 {[%clk 0:01:02]}  Rg4+ {[%clk 0:00:25]} 32. Kf1 {[%clk 0:00:59]}  Qh3+ {[%clk 0:00:25]} 33. Ke2 {[%clk 0:00:56]}  Qh5 {[%clk 0:00:19]} 34. Kf1 {[%clk 0:00:52]}  Qg6 {[%clk 0:00:13]} 35. Qxb7 {[%clk 0:00:39]}  Rg1+ {[%clk 0:00:13]} 36. Ke2 {[%clk 0:00:38]}  Qh5+ {[%clk 0:00:06]} 37. Qf3 {[%clk 0:00:37]}  Qxf3+ {[%clk 0:00:02]} 38. Kxf3 {[%clk 0:00:38]}  Rxd1 {[%clk 0:00:00]} 39. Rxd1 {[%clk 0:00:39]} 1-0


[Site "https://www.chess.com"]

[Event "Titled Tuesday Blitz October 31 Late 2023"]
[White "VitaliyChayka"]
[Black "Sari, Yasin"]
[BlackFideId "6320902"]
[WhiteElo "2150"]
[BlackElo "2296"]
[Result "0-1"]
[Round "10"]
[TimeControl "180+1"]
[Date "2023.10.31"]
[WhiteClock "0:00:00"]
[BlackClock "0:00:02"]
[Board "105"]

1. d4 {[%clk 0:02:58]}  Nf6 {[%clk 0:02:59]} 2. Bf4 {[%clk 0:02:57]}  c5 {[%clk 0:02:58]} 3. e3 {[%clk 0:02:56]}  g6 {[%clk 0:02:58]} 4. c3 {[%clk 0:02:55]}  Bg7 {[%clk 0:02:56]} 5. h3 {[%clk 0:02:55]}  O-O {[%clk 0:02:56]} 6. Nf3 {[%clk 0:02:55]}  b6 {[%clk 0:02:49]} 7. Nbd2 {[%clk 0:02:53]}  Bb7 {[%clk 0:02:47]} 8. Bd3 {[%clk 0:02:53]}  d6 {[%clk 0:02:43]} 9. Qe2 {[%clk 0:02:52]}  Nbd7 {[%clk 0:02:36]} 10. Bh2 {[%clk 0:02:51]}  a6 {[%clk 0:02:33]} 11. a4 {[%clk 0:02:49]}  Qc7 {[%clk 0:02:21]} 12. O-O {[%clk 0:02:48]}  e5 {[%clk 0:02:17]} 13. dxe5 {[%clk 0:02:46]}  dxe5 {[%clk 0:02:11]} 14. e4 {[%clk 0:02:45]}  Rfe8 {[%clk 0:01:55]} 15. Rfe1 {[%clk 0:02:41]}  h6 {[%clk 0:01:50]} 16. Nf1 {[%clk 0:02:38]}  Nh5 {[%clk 0:01:28]} 17. N3d2 {[%clk 0:02:33]}  Nf4 {[%clk 0:01:24]} 18. Bxf4 {[%clk 0:02:31]}  exf4 {[%clk 0:01:25]} 19. Qd1 {[%clk 0:02:24]}  Rad8 {[%clk 0:01:19]} 20. Qc2 {[%clk 0:02:21]}  Ne5 {[%clk 0:01:00]} 21. Be2 {[%clk 0:02:13]}  Qc8 {[%clk 0:00:55]} 22. Nh2 {[%clk 0:02:07]}  Bc6 {[%clk 0:00:46]} 23. Nhf3 {[%clk 0:01:47]}  b5 {[%clk 0:00:43]} 24. Nxe5 {[%clk 0:01:41]}  Bxe5 {[%clk 0:00:42]} 25. axb5 {[%clk 0:01:39]}  axb5 {[%clk 0:00:41]} 26. Ra5 {[%clk 0:01:30]}  Qb7 {[%clk 0:00:37]} 27. Bf3 {[%clk 0:01:26]}  Bc7 {[%clk 0:00:27]} 28. Ra2 {[%clk 0:01:21]}  Kg7 {[%clk 0:00:18]} 29. Nb3 {[%clk 0:01:20]}  Bb6 {[%clk 0:00:11]} 30. Na5 {[%clk 0:01:12]}  Bxa5 {[%clk 0:00:11]} 31. Rxa5 {[%clk 0:01:13]}  Re7 {[%clk 0:00:04]} 32. b4 {[%clk 0:01:09]}  c4 {[%clk 0:00:03]} 33. Ra2 {[%clk 0:00:54]}  Rde8 {[%clk 0:00:03]} 34. Qb1 {[%clk 0:00:52]}  Bxe4 {[%clk 0:00:03]} 35. Bxe4 {[%clk 0:00:46]}  Rxe4 {[%clk 0:00:04]} 36. Rxe4 {[%clk 0:00:44]}  Qxe4 {[%clk 0:00:05]} 37. Qxe4 {[%clk 0:00:32]}  Rxe4 {[%clk 0:00:06]} 38. Ra5 {[%clk 0:00:32]}  Re1+ {[%clk 0:00:05]} 39. Kh2 {[%clk 0:00:32]}  Rc1 {[%clk 0:00:06]} 40. Rxb5 {[%clk 0:00:31]}  Rxc3 {[%clk 0:00:06]} 41. Rc5 {[%clk 0:00:31]}  Rc2 {[%clk 0:00:06]} 42. Kg1 {[%clk 0:00:27]}  Rc1+ {[%clk 0:00:06]} 43. Kh2 {[%clk 0:00:26]}  g5 {[%clk 0:00:06]} 44. g3 {[%clk 0:00:24]}  f3 {[%clk 0:00:03]} 45. g4 {[%clk 0:00:24]}  c3 {[%clk 0:00:02]} 46. Kg3 {[%clk 0:00:23]}  c2 {[%clk 0:00:02]} 47. Kxf3 {[%clk 0:00:21]}  Rh1 {[%clk 0:00:02]} 48. Rxc2 {[%clk 0:00:19]}  Rxh3+ {[%clk 0:00:02]} 49. Kg2 {[%clk 0:00:17]}  Rb3 {[%clk 0:00:03]} 50. Rc4 {[%clk 0:00:17]}  Kg6 {[%clk 0:00:03]} 51. f3 {[%clk 0:00:17]}  f5 {[%clk 0:00:03]} 52. gxf5+ {[%clk 0:00:15]}  Kxf5 {[%clk 0:00:03]} 53. Kg3 {[%clk 0:00:15]}  h5 {[%clk 0:00:03]} 54. Rc5+ {[%clk 0:00:15]}  Kg6 {[%clk 0:00:03]} 55. b5 {[%clk 0:00:15]}  g4 {[%clk 0:00:03]} 56. Rc6+ {[%clk 0:00:11]}  Kg5 {[%clk 0:00:03]} 57. Rc5+ {[%clk 0:00:11]}  Kg6 {[%clk 0:00:04]} 58. Rc6+ {[%clk 0:00:10]}  Kf7 {[%clk 0:00:04]} 59. Rc5 {[%clk 0:00:08]}  Rxf3+ {[%clk 0:00:03]} 60. Kh4 {[%clk 0:00:08]}  Rh3+ {[%clk 0:00:03]} 61. Kg5 {[%clk 0:00:08]}  g3 {[%clk 0:00:04]} 62. Rc1 {[%clk 0:00:02]}  h4 {[%clk 0:00:03]} 63. Kg4 {[%clk 0:00:01]}  Rh2 {[%clk 0:00:03]} 64. Rg1 {[%clk 0:00:00]}  Rb2 {[%clk 0:00:02]} 0-1


[Site "https://www.chess.com"]

[Event "Titled Tuesday Blitz October 31 Late 2023"]
[White "Acikel, Mert"]
[Black "ChessDojo"]
[WhiteFideId "12956465"]
[WhiteElo "2294"]
[BlackElo "2129"]
[Result "1-0"]
[Round "10"]
[TimeControl "180+1"]
[Date "2023.10.31"]
[WhiteClock "0:02:25"]
[BlackClock "0:02:33"]
[Board "106"]

1. e4 {[%clk 0:02:55]}  Nc6 {[%clk 0:02:57]} 2. Nf3 {[%clk 0:02:53]}  e5 {[%clk 0:02:56]} 3. Bc4 {[%clk 0:02:52]}  Nf6 {[%clk 0:02:55]} 4. d3 {[%clk 0:02:52]}  Bc5 {[%clk 0:02:54]} 5. O-O {[%clk 0:02:52]}  h6 {[%clk 0:02:53]} 6. c3 {[%clk 0:02:52]}  d6 {[%clk 0:02:52]} 7. Nbd2 {[%clk 0:02:51]}  Bb6 {[%clk 0:02:52]} 8. Re1 {[%clk 0:02:42]}  Bg4 {[%clk 0:02:52]} 9. Nf1 {[%clk 0:02:39]}  O-O {[%clk 0:02:51]} 10. h3 {[%clk 0:02:38]}  Bxf3 {[%clk 0:02:50]} 11. Qxf3 {[%clk 0:02:38]}  Ne7 {[%clk 0:02:48]} 12. Bxh6 {[%clk 0:02:34]}  Ng6 {[%clk 0:02:46]} 13. Bg5 {[%clk 0:02:34]}  c6 {[%clk 0:02:43]} 14. Ng3 {[%clk 0:02:33]}  d5 {[%clk 0:02:40]} 15. Bb3 {[%clk 0:02:26]}  a5 {[%clk 0:02:38]} 16. Nh5 {[%clk 0:02:26]}  Kh8 {[%clk 0:02:34]} 17. Nxf6 {[%clk 0:02:25]}  gxf6 {[%clk 0:02:33]} 18. Bxf6+ {[%clk 0:02:25]} 1-0


[Site "https://www.chess.com"]

[Event "Titled Tuesday Blitz October 31 Late 2023"]
[White "Perry, Patrick"]
[Black "Oliveira, Tiago Batista"]
[WhiteFideId "30917727"]
[BlackFideId "2108291"]
[WhiteElo "2190"]
[BlackElo "2046"]
[Result "0-1"]
[Round "10"]
[TimeControl "180+1"]
[Date "2023.10.31"]
[WhiteClock "0:02:24"]
[BlackClock "0:00:22"]
[Board "109"]

1. e4 {[%clk 0:02:59]}  e5 {[%clk 0:02:59]} 2. d4 {[%clk 0:02:58]}  exd4 {[%clk 0:02:57]} 3. Qxd4 {[%clk 0:02:59]}  Nc6 {[%clk 0:02:57]} 4. Qe3 {[%clk 0:02:59]}  Nf6 {[%clk 0:02:58]} 5. Nc3 {[%clk 0:02:59]}  Bb4 {[%clk 0:02:58]} 6. Bd2 {[%clk 0:03:00]}  d6 {[%clk 0:02:57]} 7. O-O-O {[%clk 0:03:00]}  O-O {[%clk 0:02:58]} 8. Qg3 {[%clk 0:03:00]}  Re8 {[%clk 0:02:43]} 9. f3 {[%clk 0:02:59]}  Be6 {[%clk 0:02:12]} 10. a3 {[%clk 0:02:58]}  Ba5 {[%clk 0:02:08]} 11. Nge2 {[%clk 0:02:57]}  b5 {[%clk 0:02:02]} 12. Nf4 {[%clk 0:02:56]}  b4 {[%clk 0:02:00]} 13. axb4 {[%clk 0:02:56]}  Nxb4 {[%clk 0:01:50]} 14. Ncd5 {[%clk 0:02:55]}  Bxd5 {[%clk 0:01:43]} 15. exd5 {[%clk 0:02:47]}  Qd7 {[%clk 0:01:01]} 16. Bc4 {[%clk 0:02:45]}  Qa4 {[%clk 0:00:57]} 17. Bxb4 {[%clk 0:02:44]}  Qa1+ {[%clk 0:00:51]} 18. Kd2 {[%clk 0:02:43]}  Bxb4+ {[%clk 0:00:51]} 19. Kd3 {[%clk 0:02:41]}  Qxb2 {[%clk 0:00:50]} 20. Ne2 {[%clk 0:02:27]}  Rxe2 {[%clk 0:00:29]} 21. Kxe2 {[%clk 0:02:25]}  Qxc2+ {[%clk 0:00:29]} 22. Ke3 {[%clk 0:02:25]}  Re8+ {[%clk 0:00:24]} 23. Kd4 {[%clk 0:02:24]}  Qc3# {[%clk 0:00:22]} 0-1


[Site "https://www.chess.com"]

[Event "Titled Tuesday Blitz October 31 Late 2023"]
[White "Sokolov, Andrei"]
[Black "Desideri, Ricardo Maruchi"]
[WhiteFideId "11600306"]
[BlackFideId "2110440"]
[WhiteElo "2218"]
[BlackElo "1959"]
[Result "0-1"]
[Round "10"]
[TimeControl "180+1"]
[Date "2023.10.31"]
[WhiteClock "0:00:08"]
[BlackClock "0:00:34"]
[Board "111"]

1. d4 {[%clk 0:03:00]}  Nf6 {[%clk 0:02:57]} 2. c4 {[%clk 0:02:59]}  c5 {[%clk 0:02:57]} 3. d5 {[%clk 0:02:58]}  e6 {[%clk 0:02:58]} 4. Nc3 {[%clk 0:02:56]}  exd5 {[%clk 0:02:58]} 5. cxd5 {[%clk 0:02:57]}  d6 {[%clk 0:02:58]} 6. e4 {[%clk 0:02:57]}  g6 {[%clk 0:02:59]} 7. f4 {[%clk 0:02:57]}  Bg7 {[%clk 0:02:59]} 8. Bb5+ {[%clk 0:02:58]}  Nfd7 {[%clk 0:02:59]} 9. a4 {[%clk 0:02:57]}  a6 {[%clk 0:02:58]} 10. Be2 {[%clk 0:02:55]}  O-O {[%clk 0:02:57]} 11. Nf3 {[%clk 0:02:54]}  Nf6 {[%clk 0:02:57]} 12. O-O {[%clk 0:02:54]}  Re8 {[%clk 0:02:57]} 13. Bd3 {[%clk 0:02:29]}  Nbd7 {[%clk 0:02:54]} 14. a5 {[%clk 0:02:28]}  Rb8 {[%clk 0:02:52]} 15. Qc2 {[%clk 0:02:24]}  b5 {[%clk 0:02:51]} 16. axb6 {[%clk 0:02:23]}  Rxb6 {[%clk 0:02:51]} 17. Kh1 {[%clk 0:02:15]}  Rb4 {[%clk 0:02:50]} 18. Re1 {[%clk 0:02:05]}  c4 {[%clk 0:02:37]} 19. Bf1 {[%clk 0:01:59]}  Nc5 {[%clk 0:02:32]} 20. e5 {[%clk 0:01:48]}  dxe5 {[%clk 0:02:25]} 21. fxe5 {[%clk 0:01:47]}  Ng4 {[%clk 0:02:09]} 22. Bf4 {[%clk 0:01:20]}  Nd3 {[%clk 0:01:39]} 23. Bxd3 {[%clk 0:01:07]}  cxd3 {[%clk 0:01:39]} 24. Qd2 {[%clk 0:01:04]}  Qb6 {[%clk 0:01:17]} 25. Be3 {[%clk 0:00:19]}  Nxe3 {[%clk 0:00:58]} 26. Rxe3 {[%clk 0:00:20]}  Rxb2 {[%clk 0:00:55]} 27. Qxd3 {[%clk 0:00:20]}  Bf5 {[%clk 0:00:53]} 28. Qd4 {[%clk 0:00:14]}  Qb3 {[%clk 0:00:43]} 29. Ne2 {[%clk 0:00:11]}  Rb1+ {[%clk 0:00:42]} 30. Neg1 {[%clk 0:00:10]}  Rxa1 {[%clk 0:00:41]} 31. Qxa1 {[%clk 0:00:10]}  Qxe3 {[%clk 0:00:41]} 32. Qxa6 {[%clk 0:00:10]}  Bxe5 {[%clk 0:00:38]} 33. Nxe5 {[%clk 0:00:10]}  Qxe5 {[%clk 0:00:38]} 34. Qa8 {[%clk 0:00:08]}  Rxa8 {[%clk 0:00:34]} 0-1


[Site "https://www.chess.com"]

[Event "Titled Tuesday Blitz October 31 Late 2023"]
[White "Gyulamiryan-koryun"]
[Black "leonidsh29"]
[WhiteElo "1900"]
[BlackElo "2016"]
[Result "0-1"]
[Round "10"]
[TimeControl "180+1"]
[Date "2023.10.31"]
[WhiteClock "0:00:00"]
[BlackClock "0:00:26"]
[Board "112"]

1. e4 {[%clk 0:02:57]}  c5 {[%clk 0:02:58]} 2. Nf3 {[%clk 0:02:55]}  a6 {[%clk 0:02:56]} 3. d4 {[%clk 0:02:53]}  cxd4 {[%clk 0:02:55]} 4. Nxd4 {[%clk 0:02:53]}  e5 {[%clk 0:02:54]} 5. Nf5 {[%clk 0:02:52]}  d5 {[%clk 0:02:49]} 6. Nc3 {[%clk 0:02:33]}  dxe4 {[%clk 0:02:38]} 7. Qxd8+ {[%clk 0:02:31]}  Kxd8 {[%clk 0:02:37]} 8. Ng3 {[%clk 0:02:27]}  f5 {[%clk 0:02:33]} 9. Bg5+ {[%clk 0:02:25]}  Nf6 {[%clk 0:02:16]} 10. O-O-O+ {[%clk 0:02:23]}  Kc7 {[%clk 0:02:00]} 11. Bxf6 {[%clk 0:02:20]}  gxf6 {[%clk 0:01:59]} 12. Nd5+ {[%clk 0:02:20]}  Kc6 {[%clk 0:01:53]} 13. Nxf6 {[%clk 0:02:16]}  Be6 {[%clk 0:01:44]} 14. c4 {[%clk 0:02:15]}  Bh6+ {[%clk 0:01:34]} 15. Kc2 {[%clk 0:02:12]}  Nd7 {[%clk 0:01:29]} 16. Nxd7 {[%clk 0:02:06]}  Bxd7 {[%clk 0:01:28]} 17. b4 {[%clk 0:02:05]}  Be6 {[%clk 0:01:24]} 18. a4 {[%clk 0:02:02]}  Rhd8 {[%clk 0:01:17]} 19. Be2 {[%clk 0:02:01]}  Kc7 {[%clk 0:01:09]} 20. c5 {[%clk 0:01:54]}  Rd4 {[%clk 0:01:02]} 21. Kc3 {[%clk 0:01:44]}  Rad8 {[%clk 0:00:59]} 22. b5 {[%clk 0:01:20]}  axb5 {[%clk 0:00:57]} 23. axb5 {[%clk 0:01:19]}  Bd2+ {[%clk 0:00:55]} 24. Kc2 {[%clk 0:01:07]}  Bb4 {[%clk 0:00:49]} 25. Rxd4 {[%clk 0:01:05]}  exd4 {[%clk 0:00:47]} 26. b6+ {[%clk 0:00:54]}  Kc6 {[%clk 0:00:45]} 27. Bh5 {[%clk 0:00:39]}  d3+ {[%clk 0:00:43]} 28. Kb2 {[%clk 0:00:34]}  Ra8 {[%clk 0:00:41]} 29. Rg1 {[%clk 0:00:24]}  Bxc5 {[%clk 0:00:39]} 30. Bd1 {[%clk 0:00:14]}  Ra2+ {[%clk 0:00:37]} 31. Kb1 {[%clk 0:00:14]}  Bxf2 {[%clk 0:00:35]} 32. Rf1 {[%clk 0:00:13]}  e3 {[%clk 0:00:34]} 33. Bf3+ {[%clk 0:00:00]}  Kxb6 {[%clk 0:00:26]} 0-1


[Site "https://www.chess.com"]

[Event "Titled Tuesday Blitz October 31 Late 2023"]
[White "Eljanov, Pavel"]
[Black "Kovalev, Vladislav"]
[WhiteFideId "14102951"]
[BlackFideId "13504398"]
[WhiteElo "2860"]
[BlackElo "2924"]
[Result "0-1"]
[Round "11"]
[TimeControl "180+1"]
[Date "2023.10.31"]
[WhiteClock "0:00:14"]
[BlackClock "0:00:32"]
[Board "5"]

1. d4 {[%clk 0:03:00]}  Nf6 {[%clk 0:03:00]} 2. Bf4 {[%clk 0:03:01]}  e6 {[%clk 0:03:00]} 3. e3 {[%clk 0:03:00]}  d5 {[%clk 0:03:00]} 4. Nf3 {[%clk 0:02:58]}  c5 {[%clk 0:03:00]} 5. c3 {[%clk 0:02:58]}  Nc6 {[%clk 0:03:01]} 6. Nbd2 {[%clk 0:02:58]}  cxd4 {[%clk 0:03:01]} 7. exd4 {[%clk 0:02:57]}  Nh5 {[%clk 0:03:02]} 8. Be3 {[%clk 0:02:56]}  Bd6 {[%clk 0:03:02]} 9. Bd3 {[%clk 0:02:50]}  Nf4 {[%clk 0:03:02]} 10. Bxf4 {[%clk 0:02:50]}  Bxf4 {[%clk 0:03:03]} 11. O-O {[%clk 0:02:50]}  O-O {[%clk 0:03:04]} 12. Re1 {[%clk 0:02:49]}  g6 {[%clk 0:03:03]} 13. a4 {[%clk 0:02:44]}  Bd7 {[%clk 0:03:00]} 14. b4 {[%clk 0:02:39]}  Rc8 {[%clk 0:03:00]} 15. Nb3 {[%clk 0:02:38]}  b6 {[%clk 0:03:00]} 16. g3 {[%clk 0:02:28]}  Bd6 {[%clk 0:02:55]} 17. a5 {[%clk 0:02:26]}  Re8 {[%clk 0:02:53]} 18. Qd2 {[%clk 0:02:21]}  Qc7 {[%clk 0:02:34]} 19. axb6 {[%clk 0:01:56]}  axb6 {[%clk 0:02:34]} 20. Rac1 {[%clk 0:01:51]}  Ra8 {[%clk 0:02:12]} 21. Ra1 {[%clk 0:01:42]}  Ne7 {[%clk 0:01:57]} 22. Kg2 {[%clk 0:01:17]}  Nf5 {[%clk 0:01:56]} 23. Rxa8 {[%clk 0:00:54]}  Rxa8 {[%clk 0:01:57]} 24. Ne5 {[%clk 0:00:53]}  Ba4 {[%clk 0:01:37]} 25. Nc1 {[%clk 0:00:51]}  Rc8 {[%clk 0:01:28]} 26. Bxf5 {[%clk 0:00:48]}  exf5 {[%clk 0:01:26]} 27. Re3 {[%clk 0:00:47]}  Bxb4 {[%clk 0:00:58]} 28. cxb4 {[%clk 0:00:33]}  Qxc1 {[%clk 0:00:57]} 29. Qa2 {[%clk 0:00:19]}  Bb5 {[%clk 0:00:31]} 30. Qxd5 {[%clk 0:00:14]}  Qf1+ {[%clk 0:00:32]} 0-1


[Site "https://www.chess.com"]